fUST/lending_fUST_20240821
["ID","MTS","AMOUNT","RATE_DAILY","PERIOD"]
[335421975,1724217041454,-193.324513,0.00034921,7]
[335421976,1724217041464,-193.324513,0.00034921,7]
[335421977,1724217041473,-167.049542,0.00034921,7]
[335421978,1724217041487,-344.885066,0.00034921,7]
[335421979,1724217041497,-167.049542,0.00034921,7]
[335421980,1724217041507,-344.885066,0.00034921,7]
[335421981,1724217041516,-151.0,0.00034921,7]
[335421982,1724217041525,-502.94192269,0.00034922,120]
[335421983,1724217041535,-513.62840595,0.00034928,21]
[335421984,1724217041544,-3706.53,0.00034929,21]
[335421985,1724217041553,-209.127997,0.0003493,7]
[335421986,1724217041563,-2858.62,0.0003493,2]
[335421987,1724217041572,-2858.62,0.0003493,2]
[335421988,1724217041582,-2858.62,0.0003493,2]
[335421989,1724217041591,-2858.62,0.0003493,2]
[335421990,1724217041601,-2858.62,0.0003493,2]
[335421991,1724217041611,-2858.62,0.0003493,2]
[335421992,1724217041621,-2858.62,0.0003493,2]
[335421993,1724217041631,-2858.62,0.0003493,2]
[335421994,1724217041642,-2858.62,0.0003493,2]
[335421995,1724217041652,-2858.62,0.0003493,2]
[335421996,1724217041661,-3706.53,0.0003493,21]
[335421997,1724217041671,-3706.53,0.0003493,21]
[335421998,1724217041681,-3706.53,0.0003493,21]
[335421999,1724217041691,-3706.53,0.0003493,21]
[335422000,1724217041701,-3706.54726311,0.0003493,21]
[335422001,1724217041711,-45.81463775,0.00034931,21]
[335422002,1724217041721,-500.0,0.00034931,21]
[335422003,1724217041735,-610.52,0.00034931,21]
[335422004,1724217041745,-500.0,0.00034931,21]
[335422005,1724217041755,-610.52,0.00034931,21]
[335422006,1724217041764,-500.0,0.00034931,21]
[335422007,1724217041774,-500.0,0.00034931,21]
[335422008,1724217041784,-610.52,0.00034931,21]
[335422009,1724217041793,-527.33162156,0.00034931,21]
[335422010,1724217041804,-500.0,0.00034931,21]
[335422011,1724217041814,-610.52,0.00034931,21]
[335422012,1724217041824,-500.0,0.00034931,21]
[335422013,1724217041833,-610.52,0.00034931,21]
[335422014,1724217041843,-206.11440027,0.00034931,21]
[335422015,1724217041853,-610.52,0.00034931,21]
[335422016,1724217041863,-115.98087331,0.00034931,21]
[335422017,1724217041910,-33835.7,0.0003447,3]
[335422018,1724217041920,-500.0,0.00034573,4]
[335422019,1724217041930,-494.53912669,0.00034931,21]
[335422020,1724217041939,-610.52,0.00034931,21]
[335422021,1724217041949,-610.56793571,0.00034931,21]
[335422022,1724217041959,-500.0,0.00034931,7]
[335422023,1724217041968,-500.0,0.00034931,7]
[335422024,1724217041978,-634.41755881,0.00034931,7]
[335422025,1724217041987,-501.03388193,0.00034931,21]
[335422026,1724217041996,-703.86,0.00034931,21]
[335422027,1724217042005,-703.86,0.00034931,21]
[335422028,1724217042015,-703.86,0.00034931,21]
[335422029,1724217042024,-703.86,0.00034931,21]
[335422030,1724217042034,-703.86,0.00034931,21]
[335422031,1724217042044,-703.86,0.00034931,21]
[335422032,1724217042053,-703.86,0.00034931,21]
[335422033,1724217042062,-703.86,0.00034931,21]
[335422034,1724217042072,-508.31671381,0.00034931,7]
[335422035,1724217042081,-703.86,0.00034931,21]
[335422036,1724217042090,-703.86,0.00034931,21]
[335422037,1724217042100,-703.86,0.00034931,21]
[335422038,1724217042110,-703.86,0.00034931,21]
[335422039,1724217042119,-703.86,0.00034931,21]
[335422040,1724217042129,-703.86,0.00034931,21]
[335422041,1724217042138,-500.0,0.00034931,21]
[335422042,1724217042148,-703.86,0.00034931,21]
[335422043,1724217042157,-500.0,0.00034931,21]
[335422044,1724217042167,-703.86,0.00034931,21]
[335422045,1724217042176,-500.0,0.00034931,21]
[335422046,1724217042185,-703.86,0.00034931,21]
[335422047,1724217042195,-500.0,0.00034931,21]
[335422048,1724217042204,-703.86,0.00034931,21]
[335422049,1724217042214,-500.0,0.00034931,21]
[335422050,1724217042223,-703.86,0.00034931,21]
[335422051,1724217042232,-500.0,0.00034931,21]
[335422052,1724217042243,-703.86,0.00034931,21]
[335422053,1724217042252,-500.0,0.00034931,21]
[335422054,1724217042261,-703.86,0.00034931,21]
[335422055,1724217042271,-500.0,0.00034931,21]
[335422056,1724217042280,-703.86,0.00034931,21]
[335422057,1724217042290,-500.0,0.00034931,21]
[335422058,1724217042300,-703.86,0.00034931,21]
[335422059,1724217042309,-500.0,0.00034931,21]
[335422060,1724217042318,-703.89193796,0.00034931,21]
[335422061,1724217042327,-158.05382463,0.00034931,21]
[335422062,1724217042337,-500.0,0.00034931,21]
[335422063,1724217042347,-500.0,0.00034931,21]
[335422064,1724217042355,-500.0,0.00034931,21]
[335422065,1724217042364,-500.0,0.00034931,21]
[335422066,1724217042374,-500.0,0.00034931,21]
[335422067,1724217042383,-500.0,0.00034931,21]
[335422068,1724217042392,-500.0,0.00034931,21]
[335422069,1724217042401,-331.01026708,0.00034931,21]
[335422070,1724217042410,-500.0,0.00034931,21]
[335422071,1724217042419,-500.0,0.00034931,21]
[335422072,1724217042428,-500.0,0.00034931,21]
[335422073,1724217042437,-500.0,0.00034931,21]
[335422074,1724217042447,-500.0,0.00034931,21]
[335422076,1724217042457,-500.0,0.00034931,21]
[335422077,1724217042466,-500.0,0.00034931,21]
[335422079,1724217042475,-500.0,0.00034931,21]
[335422080,1724217042484,-500.0,0.00034931,21]
[335422081,1724217042493,-583.8999009,0.00034931,21]
[335422082,1724217042502,-500.0,0.00034931,21]
[335422083,1724217042513,-503.95248208,0.00034931,21]
[335422084,1724217042523,-500.0,0.00034931,21]
[335422085,1724217042532,-500.0,0.00034931,21]
[335422086,1724217042542,-500.0,0.00034931,21]
[335422088,1724217042552,-509.17809294,0.00034931,21]
[335422090,1724217042561,-500.0,0.00034931,21]
[335422092,1724217042571,-500.0,0.00034931,21]
[335422094,1724217042580,-500.0,0.00034931,21]
[335422096,1724217042590,-500.0,0.00034931,21]
[335422099,1724217042601,-500.0,0.00034931,21]
[335422102,1724217042610,-500.0,0.00034931,21]
[335422105,1724217042622,-500.0,0.00034931,21]
[335422107,1724217042631,-500.0,0.00034931,21]
[335422109,1724217042641,-500.0,0.00034931,21]
[335422110,1724217042652,-419.97120325,0.00034931,21]
[335422111,1724217042661,-500.0,0.00034931,21]
[335422112,1724217042670,-500.0,0.00034931,21]
[335422113,1724217042679,-309.21096404,0.00034931,21]
[335422114,1724217042690,-500.0,0.00034931,21]
[335422115,1724217042699,-500.0,0.00034931,21]
[335422116,1724217042709,-500.0,0.00034931,21]
[335422117,1724217042721,-500.0,0.00034931,21]
[335422118,1724217042737,-500.0,0.00034931,21]
[335422119,1724217042747,-500.0,0.00034931,21]
[335422120,1724217042756,-500.0,0.00034931,21]
[335422121,1724217042767,-500.0,0.00034931,21]
[335422122,1724217042775,-500.0,0.00034931,21]
[335422123,1724217042785,-561.9893789,0.00034931,21]
[335422124,1724217042794,-500.0,0.00034931,21]
[335422125,1724217042804,-500.0,0.00034931,21]
[335422126,1724217042814,-500.0,0.00034931,21]
[335422127,1724217042823,-500.0,0.00034931,21]
[335422128,1724217042833,-553.83017108,0.00034931,21]
[335422129,1724217042842,-500.0,0.00034931,21]
[335422130,1724217042852,-500.0,0.00034931,21]
[335422131,1724217042862,-500.0,0.00034931,21]
[335422132,1724217042872,-1054.01,0.00034931,21]
[335422133,1724217042882,-500.0,0.00034931,21]
[335422134,1724217042891,-500.0,0.00034931,21]
[335422135,1724217042902,-1054.01,0.00034931,21]
[335422136,1724217042911,-500.0,0.00034931,21]
[335422137,1724217042920,-1054.01,0.00034931,21]
[335422138,1724217042930,-500.0,0.00034931,21]
[335422139,1724217042939,-1054.01,0.00034931,21]
[335422140,1724217042950,-500.0,0.00034931,21]
[335422141,1724217042959,-1054.01,0.00034931,21]
[335422142,1724217042968,-269.72455622,0.00034931,21]
[335422143,1724217042977,-1054.01,0.00034931,21]
[335422144,1724217042987,-1054.01,0.00034931,21]
[335422145,1724217042997,-1054.01,0.00034931,21]
[335422146,1724217043006,-1054.01,0.00034931,21]
[335422147,1724217043014,-500.0,0.00034931,21]
[335422148,1724217043024,-1054.01,0.00034931,21]
[335422149,1724217043033,-500.0,0.00034931,21]
[335422150,1724217043043,-1054.01,0.00034931,21]
[335422151,1724217043052,-500.0,0.00034931,21]
[335422152,1724217043140,-1054.01,0.00034931,21]
[335422153,1724217043150,-500.0,0.00034931,21]
[335422154,1724217043160,-500.0,0.00034931,21]
[335422155,1724217043170,-1054.01,0.00034931,21]
[335422156,1724217043178,-500.0,0.00034931,21]
[335422157,1724217043188,-500.0,0.00034931,21]
[335422158,1724217043197,-1054.01,0.00034931,21]
[335422159,1724217043207,-500.0,0.00034931,21]
[335422160,1724217043216,-500.0,0.00034931,21]
[335422161,1724217043225,-500.0,0.00034931,21]
[335422162,1724217043235,-500.0,0.00034931,21]
[335422163,1724217043244,-1054.01,0.00034931,21]
[335422164,1724217043253,-1054.01,0.00034931,21]
[335422165,1724217043263,-244.07581247,0.00034931,21]
[335422166,1724217043272,-1054.01,0.00034931,21]
[335422167,1724217043281,-1054.01,0.00034931,21]
[335422168,1724217043291,-1054.01,0.00034931,21]
[335422169,1724217043301,-1054.01,0.00034931,21]
[335422170,1724217043310,-1054.01,0.00034931,21]
[335422171,1724217043319,-1054.01,0.00034931,21]
[335422172,1724217043328,-500.0,0.00034931,21]
[335422173,1724217043338,-1054.01,0.00034931,21]
[335422174,1724217043347,-500.0,0.00034931,21]
[335422175,1724217043356,-723.68086857,0.00034931,21]
[335422176,1724217043583,-69.92718934,0.00034931,21]
[335422198,1724217339189,154.66746495,0.00013971,2]
[335422218,1724217947257,-169.098378,0.00014247,2]
[335422219,1724217947280,-16.07547505,0.00014519,2]
[335422222,1724218027121,-226.74566975,0.00014245,2]
[335422223,1724218032137,-807.26743034,0.00014245,2]
[335422224,1724218032158,-1309.02935856,0.00017598,2]
[335422225,1724218032178,-13.61889201,0.0002,2]
[335422227,1724218035105,-143.04409797,0.0002,2]
[335422228,1724218035131,-107.01097875,0.0002,2]
[335422231,1724218040111,-595.63936741,0.0002,2]
[335422232,1724218045118,-2432.6366588,0.0002,2]
[335422233,1724218052119,-3570.25371165,0.0002,2]
[335422234,1724218052149,-205.7023193,0.0002,2]
[335422243,1724218155056,162.67701492,0.00014519,2]
[335422244,1724218155079,151.57411565,0.00014519,2]
[335422249,1724218160198,-677.13729711,0.00014519,2]
[335422251,1724218170212,-54.22796555,0.0002,2]
[335422252,1724218170233,-226.13158555,0.0002,2]
[335422253,1724218170255,-156.66298998,0.0002,2]
[335422254,1724218170276,-287.17173053,0.0002,2]
[335422255,1724218170296,-2530.26683329,0.0002,2]
[335422257,1724218196466,175.87418867,0.00014519,3]
[335422258,1724218196494,21.64949837,0.00014519,3]
[335422287,1724218232013,-510.30323151,0.0002,2]
[335422289,1724218232025,-736.23740997,0.0002,2]
[335422291,1724218232036,-13450.29977522,0.0002,2]
[335422394,1724218240158,-500.0,0.00019999,2]
[335422395,1724218240168,-500.0,0.00019999,2]
[335422396,1724218240177,-500.0,0.00019999,2]
[335422397,1724218240186,-500.0,0.00019999,2]
[335422398,1724218240197,-506.62579798,0.00019999,2]
[335422399,1724218240207,-86156.24887909,0.0002,2]
[335422428,1724218245937,-1574.57906139,0.0002,2]
[335422436,1724218245996,-1130.16334567,0.0002,2]
[335422527,1724218319786,219.04277565,0.00014519,2]
[335422528,1724218319807,233.20238368,0.00014519,2]
[335422529,1724218319828,254.04944735,0.00014519,2]
[335422530,1724218319848,89.093821,0.00014519,2]
[335422534,1724218513898,259.23412995,0.00013971,2]
[335422535,1724218525420,155.0635174,0.00013971,4]
[335422539,1724218816528,1389.92,0.00016555,30]
[335422543,1724219145140,-193.488076,0.00014247,2]
[335422544,1724219145162,-164.924729,0.00014247,2]
[335422545,1724219145182,-1020.24274271,0.00018708,2]
[335422546,1724219233107,-629.636562,0.00018737,2]
[335422547,1724219233130,-711.9084682,0.00018831,2]
[335422548,1724219235103,-965.5014111,0.00018831,2]
[335422549,1724219236110,-385.7261833,0.00018831,2]
[335422550,1724219242103,-4407.58501451,0.00018831,2]
[335422551,1724219248103,-472.00778253,0.00018831,2]
[335422552,1724219251351,-595.65247772,0.00018831,2]
[335422553,1724219348146,-330.22909661,0.00014519,2]
[335422554,1724219348169,-1072.47123724,0.00018831,2]
[335422555,1724219349356,155.23881976,0.00014519,2]
[335422556,1724219363119,-15681.04632087,0.00018831,2]
[335422557,1724219363536,79.4366537,0.00014,2]
[335422558,1724219363558,172.83078315,0.00014,2]
[335422559,1724219363585,174.39256315,0.00014,2]
[335422560,1724219366088,-307.49598314,0.00018831,2]
[335422561,1724219373109,-165.060864,0.00018825,2]
[335422562,1724219373130,-12.20036761,0.00018831,2]
[335422563,1724219374093,-262.1696,0.00018831,2]
[335422567,1724219413722,215.79998762,0.00014519,2]
[335422602,1724219432110,-114.42910899,0.00014519,2]
[335422603,1724219432120,-312.55304676,0.00018555,2]
[335422606,1724219432131,-436.33522896,0.00018555,2]
[335422692,1724219438251,-17275.34878025,0.00017598,2]
[335422693,1724219438261,-2251.11172428,0.00018555,2]
[335422694,1724219438271,-26.23515378,0.00018831,2]
[335422695,1724219438280,-165.060864,0.00019021,2]
[335422696,1724219438388,-500.0,0.00019114,2]
[335422697,1724219438409,-165.979066,0.00019178,2]
[335422698,1724219438419,-165.060864,0.00019217,2]
[335422699,1724219438429,-165.060864,0.00019413,2]
[335422700,1724219438439,-4530.1162582,0.00019442,2]
[335422701,1724219438448,-4530.1162582,0.00019595,2]
[335422702,1724219438457,-165.060864,0.0001961,2]
[335422704,1724219438467,-150.0,0.00019792,2]
[335422705,1724219438479,-782.718708,0.00019799,2]
[335422707,1724219438488,-366.06574561,0.00019799,2]
[335422709,1724219438497,-165.060864,0.00019806,2]
[335422711,1724219438507,-4530.1162582,0.00019946,2]
[335422713,1724219438517,-500.0,0.00019999,2]
[335422715,1724219438526,-500.0,0.00019999,2]
[335422717,1724219438535,-500.0,0.00019999,2]
[335422719,1724219438547,-500.0,0.00019999,2]
[335422720,1724219438556,-500.0,0.00019999,2]
[335422721,1724219438567,-500.0,0.00019999,2]
[335422722,1724219438577,-500.0,0.00019999,2]
[335422723,1724219438587,-500.0,0.00019999,2]
[335422724,1724219438597,-500.0,0.00019999,2]
[335422725,1724219438606,-500.0,0.00019999,2]
[335422726,1724219438615,-500.0,0.00019999,2]
[335422727,1724219438625,-500.0,0.00019999,2]
[335422728,1724219438635,-500.0,0.00019999,2]
[335422729,1724219438645,-500.0,0.00019999,2]
[335422730,1724219438655,-500.0,0.00019999,2]
[335422731,1724219438665,-500.0,0.00019999,2]
[335422732,1724219438675,-500.0,0.00019999,2]
[335422733,1724219438688,-500.0,0.00019999,2]
[335422734,1724219438698,-500.0,0.00019999,2]
[335422735,1724219438707,-500.0,0.00019999,2]
[335422736,1724219438718,-500.0,0.00019999,2]
[335422737,1724219438729,-500.0,0.00019999,2]
[335422738,1724219438740,-500.0,0.00019999,2]
[335422739,1724219438753,-500.0,0.00019999,2]
[335422740,1724219438762,-500.0,0.00019999,2]
[335422741,1724219438772,-500.0,0.00019999,2]
[335422742,1724219438783,-500.0,0.00019999,2]
[335422743,1724219438793,-500.0,0.00019999,2]
[335422744,1724219438804,-500.0,0.00019999,2]
[335422745,1724219438814,-500.0,0.00019999,2]
[335422746,1724219438823,-500.0,0.00019999,2]
[335422747,1724219438833,-500.0,0.00019999,2]
[335422748,1724219438842,-20425.22770096,0.0002,2]
[335422749,1724219438852,-226.13158555,0.0002,2]
[335422750,1724219438861,-313.82141295,0.0002,2]
[335422751,1724219438871,-246.71774564,0.0002,2]
[335422752,1724219438880,-195.14426525,0.0002,2]
[335422753,1724219438890,-4530.1162582,0.00020411,2]
[335422754,1724219438901,-4530.1162586,0.00020705,2]
[335422755,1724219438911,-193.488076,0.00020707,2]
[335422756,1724219438920,-500.0,0.00020986,2]
[335422757,1724219438931,-150.0,0.00021,2]
[335422758,1724219438941,-314.89975842,0.00021525,2]
[335422759,1724219438951,-500.0,0.00022057,2]
[335422760,1724219438960,-932.38774276,0.00022494,2]
[335422761,1724219438972,-154.60575532,0.00022521,2]
[335422762,1724219438982,-160.8404123,0.00022559,2]
[335422763,1724219438994,-10343.5134042,0.00022722,2]
[335422764,1724219439005,-277.68803325,0.00022722,2]
[335422765,1724219439015,-953.53947811,0.00022757,2]
[335422766,1724219439026,-396.79922427,0.00022925,2]
[335422767,1724219439035,-500.29195024,0.00024036,2]
[335422768,1724219439045,-882.99597685,0.00024135,2]
[335422769,1724219439054,-882.99597685,0.00024135,2]
[335422770,1724219439064,-166.688108,0.00024587,2]
[335422771,1724219439073,-420.0,0.00025,2]
[335422772,1724219439083,-308.47910106,0.00025,2]
[335422773,1724219439094,-369.96805713,0.00025,30]
[335422774,1724219439105,-259.064396,0.00025,120]
[335422775,1724219439116,-154.60575532,0.00025,2]
[335422776,1724219439125,-154.60575532,0.00025,2]
[335422777,1724219439134,-503.74077903,0.00025,2]
[335422778,1724219439143,-199.0,0.00025,2]
[335422779,1724219439152,-165.0,0.00025,2]
[335422780,1724219439161,-217.1,0.0002503,2]
[335422781,1724219439171,-503.74077903,0.0002525,2]
[335422782,1724219439180,-500.0,0.00025469,2]
[335422783,1724219439189,-503.74077903,0.000255,2]
[335422784,1724219439198,-503.74077903,0.0002575,2]
[335422785,1724219439209,-501.99527765,0.00025849,2]
[335422786,1724219439219,-165.0,0.0002589,2]
[335422787,1724219439229,-217.1,0.0002593,2]
[335422788,1724219439238,-503.74077903,0.00026,2]
[335422789,1724219439250,-321.89231166,0.00026017,2]
[335422790,1724219439260,-503.74077903,0.0002625,2]
[335422791,1724219439269,-48723.41,0.000264,3]
[335422792,1724219439278,-58468.09,0.0002641,3]
[335422793,1724219439287,-882.39,0.0002642,3]
[335422794,1724219439296,-70161.71,0.0002642,3]
[335422795,1724219439306,-464.81867426,0.00026439,2]
[335422796,1724219439316,-500.0,0.00026439,2]
[335422797,1724219439325,-500.0,0.00026439,2]
[335422798,1724219439335,-437.59237812,0.00026439,2]
[335422799,1724219439344,-500.0,0.00026439,2]
[335422800,1724219439354,-500.0,0.00026439,2]
[335422801,1724219439364,-500.0,0.00026439,2]
[335422802,1724219439375,-500.0,0.00026439,2]
[335422803,1724219439385,-650.50794685,0.00026439,2]
[335422804,1724219439396,-500.0,0.00026439,2]
[335422805,1724219439405,-500.0,0.00026439,2]
[335422806,1724219439416,-500.0,0.00026439,2]
[335422807,1724219439426,-17768.2443956,0.0002644,3]
[335422808,1724219439436,-35536.4887911,0.0002645,3]
[335422809,1724219439446,-151.0,0.0002646,7]
[335422810,1724219439456,-151.0,0.0002646,7]
[335422811,1724219439468,-151.0,0.0002646,7]
[335422812,1724219439481,-151.0,0.0002646,7]
[335422813,1724219439490,-167.049542,0.0002646,7]
[335422814,1724219439499,-344.885066,0.0002646,7]
[335422815,1724219439509,-167.049542,0.0002646,7]
[335422816,1724219439518,-344.885066,0.0002646,7]
[335422817,1724219439527,-151.0,0.0002646,7]
[335422818,1724219439536,-17768.2443956,0.0002646,3]
[335422819,1724219439547,-503.74077903,0.000265,2]
[335422820,1724219439556,-153.38,0.000266,31]
[335422821,1724219439565,-153.38,0.000266,31]
[335422822,1724219439574,-153.38,0.000266,31]
[335422823,1724219439583,-153.38,0.000266,31]
[335422824,1724219439591,-153.38,0.000266,31]
[335422825,1724219439600,-153.38,0.000266,31]
[335422826,1724219439610,-153.38,0.000266,31]
[335422827,1724219439619,-153.38,0.000266,31]
[335422828,1724219439628,-153.38,0.000266,31]
[335422829,1724219439638,-153.38,0.000266,31]
[335422830,1724219439647,-153.38,0.000266,31]
[335422831,1724219439656,-153.38,0.000266,31]
[335422832,1724219439665,-503.74077903,0.0002675,2]
[335422833,1724219439674,-217.1,0.0002683,2]
[335422834,1724219439684,-172.0,0.00027,2]
[335422835,1724219439695,-503.74077903,0.00027,2]
[335422836,1724219439705,-193.488076,0.00027167,2]
[335422837,1724219439714,-503.74077903,0.0002725,2]
[335422838,1724219439725,-217.1,0.0002773,2]
[335422839,1724219439735,-17768.2443956,0.00027937,3]
[335422840,1724219439747,-835.74715032,0.00028,2]
[335422841,1724219439755,-225.0,0.00028,2]
[335422842,1724219439765,-369.21673832,0.00028,30]
[335422843,1724219439774,-629.636562,0.00028105,2]
[335422844,1724219439783,-161.932777,0.00028326,2]
[335422845,1724219439792,-409.76712986,0.000285,2]
[335422846,1724219439802,-6617.71510224,0.00028576,30]
[335422847,1724219439811,-153.38,0.000286,31]
[335422848,1724219439820,-153.38,0.000286,31]
[335422849,1724219439830,-153.38,0.000286,31]
[335422850,1724219439840,-153.38,0.000286,31]
[335422851,1724219439850,-153.38,0.000286,31]
[335422852,1724219439861,-153.38,0.000286,31]
[335422853,1724219439871,-153.38,0.000286,31]
[335422854,1724219439882,-153.38,0.000286,31]
[335422855,1724219439893,-153.38,0.000286,31]
[335422856,1724219439902,-153.38,0.000286,31]
[335422857,1724219439912,-153.38,0.000286,31]
[335422858,1724219439924,-153.38,0.000286,31]
[335422859,1724219439935,-153.38,0.000286,31]
[335422860,1724219439945,-153.38,0.000286,31]
[335422861,1724219439954,-153.38,0.000286,31]
[335422862,1724219439963,-153.38,0.000286,31]
[335422863,1724219439972,-153.38,0.000286,31]
[335422864,1724219439982,-153.38,0.000286,31]
[335422866,1724219439991,-153.38,0.000286,31]
[335422868,1724219440000,-153.38,0.000286,31]
[335422870,1724219440010,-153.38,0.000286,31]
[335422872,1724219440019,-153.38,0.000286,31]
[335422874,1724219440029,-153.38,0.000286,31]
[335422876,1724219440038,-153.38,0.000286,31]
[335422878,1724219440047,-151.347671,0.00028601,7]
[335422880,1724219440056,-151.0,0.00028601,7]
[335422882,1724219440065,-1543.449739,0.00028601,7]
[335422884,1724219440074,-1543.449739,0.00028601,7]
[335422886,1724219440083,-152.362039,0.00028601,7]
[335422888,1724219440092,-151.0,0.00028601,7]
[335422890,1724219440101,-151.0,0.00028601,7]
[335422891,1724219440111,-156.748503,0.00028601,7]
[335422894,1724219440121,-151.0,0.00028601,7]
[335422896,1724219440130,-151.0,0.00028601,7]
[335422898,1724219440140,-217.1,0.0002863,2]
[335422900,1724219440149,-172.0,0.00028767,2]
[335422902,1724219440159,-500.0,0.00028973,4]
[335422915,1724219440243,-17768.2443956,0.0002899,3]
[335422917,1724219440253,-151.0,0.0002899,7]
[335422919,1724219440262,-151.0,0.0002899,7]
[335422921,1724219440271,-153.835038,0.0002899,7]
[335422923,1724219440280,-151.0,0.0002899,7]
[335422925,1724219440289,-167.049542,0.0002899,7]
[335422927,1724219440298,-344.885066,0.0002899,7]
[335422929,1724219440307,-167.049542,0.0002899,7]
[335422931,1724219440316,-344.885066,0.0002899,7]
[335422933,1724219440326,-151.0,0.0002899,7]
[335422935,1724219440335,-57570.14793085,0.00029,2]
[335422937,1724219440345,-151.0,0.00029,7]
[335422938,1724219440355,-1000.0,0.00029,29]
[335422940,1724219440364,-151.0,0.00029,7]
[335422942,1724219440374,-151.0,0.00029,7]
[335422944,1724219440383,-151.0,0.00029,7]
[335422946,1724219440392,-151.400065,0.00029,7]
[335422948,1724219440401,-153.423635,0.00029,7]
[335422950,1724219440411,-151.0,0.00029,7]
[335422953,1724219440420,-182.875838,0.00029,7]
[335422954,1724219440430,-1543.449739,0.00029,7]
[335422956,1724219440439,-1543.449739,0.00029,7]
[335422959,1724219440449,-151.0,0.00029,7]
[335422961,1724219440460,-151.0,0.00029,7]
[335422962,1724219440470,-151.0,0.00029,7]
[335422965,1724219440481,-151.0,0.00029,7]
[335422967,1724219440491,-151.0,0.00029,7]
[335422968,1724219440500,-155.627746,0.00029,7]
[335422970,1724219440509,-151.0,0.00029,7]
[335422972,1724219440518,-193.324513,0.00029,7]
[335422974,1724219440528,-193.324513,0.00029,7]
[335422976,1724219440538,-195.753675,0.00029,7]
[335422978,1724219440547,-195.753675,0.00029,7]
[335422980,1724219440557,-176.141595,0.00029,7]
[335422982,1724219440567,-300.0,0.00029,2]
[335422984,1724219440577,-152.303167,0.00029,7]
[335422986,1724219440587,-151.0,0.00029,7]
[335422989,1724219440600,-151.0,0.00029,7]
[335422991,1724219440612,-167.049542,0.00029,7]
[335422993,1724219440622,-344.885066,0.00029,7]
[335422995,1724219440631,-167.049542,0.00029,7]
[335422996,1724219440641,-344.885066,0.00029,7]
[335422999,1724219440650,-151.0,0.00029,7]
[335423000,1724219440662,-151.0,0.00029,7]
[335423002,1724219440671,-190.118313,0.00029,7]
[335423004,1724219440680,-17768.2443956,0.00029351,3]
[335423005,1724219440689,-151.0,0.00029361,7]
[335423006,1724219440699,-251.922161,0.00029361,2]
[335423007,1724219440709,-153.316594,0.00029361,7]
[335423008,1724219440719,-292.818541,0.00029361,7]
[335423009,1724219440729,-151.0,0.00029361,7]
[335423010,1724219440738,-198.165829,0.00029361,7]
[335423011,1724219440747,-152.347072,0.00029361,7]
[335423012,1724219440757,-154.26523,0.00029361,7]
[335423013,1724219440766,-151.0,0.00029361,7]
[335423014,1724219440775,-17768.2443956,0.0002939,3]
[335423015,1724219440784,-920.52,0.000294,14]
[335423016,1724219440793,-59174.88,0.000294,14]
[335423017,1724219440803,-151.0,0.000294,7]
[335423018,1724219440814,-151.0,0.000294,7]
[335423019,1724219440824,-193.324513,0.000294,7]
[335423020,1724219440833,-193.324513,0.000294,7]
[335423021,1724219440842,-195.753675,0.000294,7]